fUSD/lending_fUSD_20260131
["ID","MTS","AMOUNT","RATE_DAILY","PERIOD"]
[404167837,1769895038693,-5833.44229833,0.00015677,2]
[404167839,1769895038702,-680.0,0.00015682,2]
[404167841,1769895038711,-372.56715583,0.00015683,2]
[404167843,1769895038721,-1308.0,0.00015714,2]
[404167845,1769895038730,-956.91,0.00015873,2]
[404167848,1769895038741,-5833.44229833,0.00015955,2]
[404167850,1769895038751,-956.91,0.00016147,2]
[404167852,1769895038760,-420.0,0.00016188,2]
[404167854,1769895038769,-200.0,0.00016197,2]
[404167855,1769895038779,-500.0,0.00016197,2]
[404167858,1769895038788,-5000.00397033,0.000162,5]
[404167860,1769895038798,-12959.58,0.00016207,2]
[404167862,1769895038807,-5833.44229833,0.00016233,2]
[404167864,1769895038816,-1680.0,0.00016267,2]
[404167865,1769895038826,-151.0,0.00016295,2]
[404167867,1769895038835,-8478.47334261,0.00016298,2]
[404167869,1769895038845,-167.39,0.00016303,2]
[404167871,1769895038854,-503.05738701,0.00016373,2]
[404167873,1769895038863,-162.48325978,0.00016373,2]
[404167875,1769895038873,-225.36065254,0.00016373,2]
[404167877,1769895038882,-500.0,0.00016373,2]
[404167879,1769895038892,-175.86852509,0.00016373,2]
[404167881,1769895038901,-500.97745752,0.00016373,2]
[404167883,1769895038912,-502.99903399,0.00016373,2]
[404167885,1769895038922,-503.3190513,0.00016373,2]
[404167887,1769895038931,-628.67032054,0.00016373,2]
[404167889,1769895038940,-164.09822138,0.00016373,2]
[404167891,1769895038949,-500.0,0.00016373,2]
[404167893,1769895038960,-500.0,0.00016373,2]
[404167896,1769895038969,-500.0,0.00016373,2]
[404167897,1769895038978,-500.0,0.00016373,2]
[404167899,1769895038988,-500.97262911,0.00016373,2]
[404167901,1769895038997,-501.68839714,0.00016373,2]
[404167903,1769895039007,-500.0,0.00016373,2]
[404167904,1769895039016,-956.91,0.00016421,2]
[404167905,1769895039025,-500.0,0.00016438,2]
[404167906,1769895039034,-500.0,0.00016438,2]
[404167907,1769895039043,-500.0,0.00016438,2]
[404167908,1769895039055,-500.0,0.00016438,2]
[404167909,1769895039064,-500.0,0.00016438,2]
[404167910,1769895039074,-500.0,0.00016438,2]
[404167911,1769895039084,-500.0,0.00016438,2]
[404167912,1769895039094,-500.0,0.00016438,2]
[404167913,1769895039103,-500.0,0.00016438,2]
[404167914,1769895039115,-500.0,0.00016438,2]
[404167915,1769895039124,-500.0,0.00016438,2]
[404167916,1769895039134,-500.0,0.00016438,2]
[404167917,1769895039143,-500.0,0.00016438,2]
[404167918,1769895039153,-500.0,0.00016438,2]
[404167919,1769895039164,-366.44630486,0.00016438,2]
[404167920,1769895039174,-500.0,0.00016438,2]
[404167921,1769895039184,-500.0,0.00016438,2]
[404167922,1769895039194,-500.0,0.00016438,2]
[404167923,1769895039202,-500.0,0.00016438,2]
[404167924,1769895039211,-500.0,0.00016438,2]
[404167925,1769895039221,-500.0,0.00016438,2]
[404167926,1769895039230,-500.0,0.00016438,2]
[404167927,1769895039239,-500.0,0.00016438,2]
[404167928,1769895039250,-500.0,0.00016438,2]
[404167929,1769895039260,-500.0,0.00016438,2]
[404167930,1769895039270,-500.0,0.00016438,2]
[404167931,1769895039280,-500.0,0.00016438,2]
[404167932,1769895039289,-500.0,0.00016438,2]
[404167933,1769895039299,-500.0,0.00016438,2]
[404167934,1769895039308,-500.0,0.00016438,2]
[404167935,1769895039317,-1148.25,0.00016455,2]
[404167936,1769895039327,-5833.44229833,0.00016511,2]
[404167937,1769895039336,-8478.47334261,0.00016565,2]
[404167938,1769895039346,-166.89823186,0.00016617,2]
[404167939,1769895039355,-510.0,0.00016627,2]
[404167940,1769895039365,-9971.0178,0.00016689,2]
[404167941,1769895039375,-956.91,0.00016695,2]
[404167942,1769895039384,-1000.0,0.00016704,2]
[404167943,1769895039393,-200.0,0.00016745,2]
[404167944,1769895039403,-511.02350667,0.00016745,2]
[404167945,1769895039416,-5833.44229833,0.00016788,2]
[404167946,1769895039426,-8478.47334261,0.00016832,2]
[404167947,1769895039435,-151.0,0.00016919,2]
[404167948,1769895039445,-500.0,0.00016921,2]
[404167949,1769895039454,-524.60055371,0.00016921,2]
[404167950,1769895039464,-1009.75787048,0.00016921,2]
[404167951,1769895039474,-258.14,0.00016922,2]
[404167952,1769895039483,-150.99,0.00016922,2]
[404167953,1769895039493,-150.99,0.00016922,2]
[404167954,1769895039503,-9999.99,0.00016922,2]
[404167955,1769895039512,-4999.99,0.00016922,2]
[404167956,1769895039522,-9999.99,0.00016922,2]
[404167957,1769895039532,-460.7,0.00016922,2]
[404167958,1769895039542,-665.25,0.00016922,2]
[404167959,1769895039552,-956.91,0.00016969,2]
[404167960,1769895039562,-167.39,0.00016976,2]
[404167961,1769895039572,-300.0,0.00017,2]
[404167962,1769895039583,-21329.9258491,0.00017,2]
[404167963,1769895039592,-151.0,0.00017,2]
[404167964,1769895039603,-151.0,0.00017,2]
[404167965,1769895039614,-151.0,0.00017,2]
[404167966,1769895039623,-1414.490227,0.00017,2]
[404167967,1769895039633,-1414.490227,0.00017,2]
[404167968,1769895039643,-157.385787,0.00017,2]
[404167969,1769895039653,-1414.490227,0.00017,2]
[404167970,1769895039666,-204.006437,0.00017,2]
[404167971,1769895039675,-157.385787,0.00017,2]
[404167972,1769895039685,-204.006437,0.00017,2]
[404167973,1769895039694,-1414.490227,0.00017,2]
[404167974,1769895039703,-157.385787,0.00017,2]
[404167975,1769895039712,-204.006437,0.00017,2]
[404167976,1769895039721,-157.385787,0.00017,2]
[404167977,1769895039730,-204.006437,0.00017,2]
[404167978,1769895039739,-5833.44229833,0.00017066,2]
[404167979,1769895039749,-1139.862,0.00017072,2]
[404167980,1769895039758,-1000.0,0.00017072,2]
[404167981,1769895039767,-8478.47334261,0.00017099,2]
[404167982,1769895039776,-168.0,0.0001723,2]
[404167983,1769895039786,-956.91,0.00017243,2]
[404167984,1769895039795,-207.9999104,0.00017293,2]
[404167985,1769895039804,-5833.44229833,0.00017344,2]
[404167986,1769895039813,-8478.47334261,0.00017366,2]
[404167987,1769895039822,-151.0,0.00017366,2]
[404167988,1769895039831,-299.267784,0.00017366,2]
[404167989,1769895039841,-299.267784,0.00017366,2]
[404167990,1769895039851,-299.267784,0.00017366,2]
[404167991,1769895039861,-299.267784,0.00017366,2]
[404167993,1769895039871,-151.0,0.00017366,2]
[404167994,1769895039880,-200.0,0.00017392,2]
[404167995,1769895039889,-151.0,0.00017413,2]
[404167996,1769895039898,-151.0,0.00017413,2]
[404167997,1769895039907,-5615.7995,0.00017413,2]
[404167998,1769895039917,-1000.0,0.00017413,2]
[404167999,1769895039926,-260.12748448,0.00017415,2]
[404168000,1769895039935,-151.0,0.00017444,2]
[404168004,1769895039944,-168.0,0.00017456,2]
[404168005,1769895039953,-168.0,0.0001748,2]
[404168006,1769895039966,-151.0,0.00017497,2]
[404168007,1769895039976,-2616.6156,0.000175,2]
[404168008,1769895039985,-39757.69680898,0.000175,3]
[404168009,1769895039995,-1606.1220274,0.000175,2]
[404168010,1769895040005,-1270.0,0.00017515,2]
[404168011,1769895040013,-916.0,0.00017515,2]
[404168012,1769895040022,-1205.0,0.00017515,2]
[404168013,1769895040032,-1410.0,0.00017515,2]
[404168014,1769895040042,-1334.0,0.00017515,2]
[404168015,1769895040052,-615.0,0.00017515,2]
[404168016,1769895040062,-151.0,0.00017515,2]
[404168017,1769895040073,-151.0,0.00017515,2]
[404168018,1769895040083,-299.267784,0.00017515,2]
[404168019,1769895040093,-299.267784,0.00017515,2]
[404168020,1769895040102,-299.267784,0.00017515,2]
[404168021,1769895040111,-299.267784,0.00017515,2]
[404168022,1769895040121,-151.0,0.00017515,2]
[404168023,1769895040132,-151.0,0.00017515,2]
[404168024,1769895040141,-151.0,0.00017515,2]
[404168025,1769895040152,-151.0,0.00017515,2]
[404168026,1769895040164,-1414.490227,0.00017515,2]
[404168027,1769895040173,-1414.490227,0.00017515,2]
[404168028,1769895040182,-157.385787,0.00017515,2]
[404168029,1769895040192,-204.006437,0.00017515,2]
[404168030,1769895040202,-1414.490227,0.00017515,2]
[404168031,1769895040211,-157.385787,0.00017515,2]
[404168032,1769895040222,-204.006437,0.00017515,2]
[404168033,1769895040231,-1414.490227,0.00017515,2]
[404168034,1769895040242,-157.385787,0.00017515,2]
[404168035,1769895040251,-204.006437,0.00017515,2]
[404168036,1769895040262,-157.385787,0.00017515,2]
[404168037,1769895040271,-204.006437,0.00017515,2]
[404168038,1769895040282,-956.91,0.00017517,2]
[404168039,1769895040292,-151.0,0.00017591,2]
[404168040,1769895040301,-500.0,0.00017593,2]
[404168041,1769895040310,-500.0,0.00017593,2]
[404168042,1769895040319,-500.0,0.00017593,2]
[404168043,1769895040328,-1263.43977985,0.00017594,2]
[404168044,1769895040338,-3334.23756858,0.00017594,2]
[404168045,1769895040347,-5881.99029079,0.00017594,2]
[404168046,1769895040356,-8799.10569629,0.00017594,2]
[404168047,1769895040365,-11905.5024,0.00017594,2]
[404168048,1769895040376,-487.0,0.00017594,2]
[404168049,1769895040386,-487.0,0.00017594,2]
[404168050,1769895040395,-487.0,0.00017594,2]
[404168051,1769895040404,-487.0,0.00017594,2]
[404168052,1769895040422,-611.4,0.00017594,2]
[404168053,1769895040433,-151.0,0.00017594,2]
[404168054,1769895040442,-151.0,0.00017594,2]
[404168055,1769895040451,-151.0,0.00017594,2]
[404168056,1769895040460,-151.0,0.00017594,2]
[404168057,1769895040469,-151.0,0.00017594,2]
[404168058,1769895040479,-151.0,0.00017594,2]
[404168059,1769895040488,-171.35164,0.00017594,2]
[404168060,1769895040497,-151.0,0.00017594,2]
[404168061,1769895040506,-151.0,0.00017594,2]
[404168062,1769895040515,-151.0,0.00017594,2]
[404168063,1769895040524,-151.0,0.00017594,2]
[404168065,1769895040534,-151.0,0.00017594,2]
[404168066,1769895040543,-5833.44229833,0.00017622,2]
[404168067,1769895040552,-8478.47334261,0.00017633,2]
[404168068,1769895040561,-167.39,0.00017648,2]
[404168069,1769895040573,-500.0,0.00017668,2]
[404168070,1769895040583,-500.0,0.00017668,2]
[404168071,1769895040592,-500.0,0.00017668,2]
[404168072,1769895040601,-1230.0,0.00017668,2]
[404168073,1769895040611,-200.0,0.00017673,2]
[404168074,1769895040620,-500.0,0.00017699,2]
[404168075,1769895040629,-500.0,0.00017699,2]
[404168076,1769895040638,-500.0,0.00017699,2]
[404168077,1769895040647,-150.0,0.00017699,2]
[404168078,1769895040656,-282.09898654,0.00017699,2]
[404168079,1769895040670,-500.0,0.00017699,2]
[404168080,1769895040679,-150.0,0.00017699,2]
[404168081,1769895040689,-500.0,0.00017699,2]
[404168082,1769895040698,-500.0,0.00017699,2]
[404168084,1769895040707,-150.0,0.00017699,2]
[404168085,1769895040716,-500.0,0.00017699,2]
[404168086,1769895040725,-299.267784,0.00017699,2]
[404168087,1769895040734,-500.0,0.00017699,2]
[404168088,1769895040743,-299.267784,0.00017699,2]
[404168089,1769895040752,-299.267784,0.00017699,2]
[404168090,1769895040761,-299.267784,0.00017699,2]
[404168091,1769895040770,-151.0,0.00017699,2]
[404168092,1769895040785,-500.0,0.00017699,2]
[404168093,1769895040794,-500.0,0.00017699,2]
[404168094,1769895040803,-150.0,0.00017699,2]
[404168095,1769895040812,-500.0,0.00017699,2]
[404168096,1769895040821,-150.0,0.00017699,2]
[404168097,1769895040831,-500.0,0.00017699,2]
[404168098,1769895040840,-500.0,0.00017699,2]
[404168099,1769895040850,-500.0,0.00017699,2]
[404168100,1769895040859,-150.0,0.00017699,2]
[404168101,1769895040870,-150.0,0.00017699,2]
[404168102,1769895040879,-782.37971898,0.000177,2]
[404168103,1769895040889,-587.0,0.00017721,2]
[404168104,1769895040899,-500.0,0.00017754,2]
[404168105,1769895040909,-500.0,0.00017754,2]
[404168106,1769895040919,-500.0,0.00017754,2]
[404168107,1769895040928,-150.0,0.00017754,2]
[404168108,1769895040937,-500.0,0.00017754,2]
[404168109,1769895040946,-150.0,0.00017754,2]
[404168110,1769895040955,-500.0,0.00017754,2]
[404168111,1769895040964,-500.0,0.00017754,2]
[404168112,1769895040973,-150.0,0.00017754,2]
[404168113,1769895040983,-500.0,0.00017754,2]
[404168114,1769895040992,-500.0,0.00017754,2]
[404168115,1769895041001,-500.0,0.00017754,2]
[404168116,1769895041011,-500.0,0.00017754,2]
[404168117,1769895041020,-500.0,0.00017754,2]
[404168118,1769895041030,-150.0,0.00017754,2]
[404168119,1769895041041,-500.0,0.00017754,2]
[404168120,1769895041051,-500.0,0.00017754,2]
[404168121,1769895041062,-500.0,0.00017754,2]
[404168122,1769895041077,-151.0,0.00017754,2]
[404168123,1769895041086,-151.0,0.00017754,2]
[404168124,1769895041095,-151.0,0.00017754,2]
[404168125,1769895041104,-1414.490227,0.00017754,2]
[404168126,1769895041113,-1414.490227,0.00017754,2]
[404168127,1769895041122,-157.385787,0.00017754,2]
[404168128,1769895041132,-204.006437,0.00017754,2]
[404168129,1769895041143,-1414.490227,0.00017754,2]
[404168130,1769895041154,-157.385787,0.00017754,2]
[404168131,1769895041169,-204.006437,0.00017754,2]
[404168132,1769895041178,-1414.490227,0.00017754,2]
[404168133,1769895041188,-157.385787,0.00017754,2]
[404168134,1769895041199,-204.006437,0.00017754,2]
[404168135,1769895041209,-157.385787,0.00017754,2]
[404168136,1769895041221,-204.006437,0.00017754,2]
[404168137,1769895041231,-2461.1544101,0.00017762,2]
[404168138,1769895041243,-166.89823186,0.00017762,2]
[404168139,1769895041253,-151.0,0.00017781,2]
[404168140,1769895041265,-151.0,0.00017781,2]
[404168141,1769895041275,-2461.15441005,0.0001779,2]
[404168142,1769895041286,-757.635,0.0001779,2]
[404168143,1769895041297,-192.369,0.0001779,2]
[404168144,1769895041307,-956.91,0.00017791,2]
[404168145,1769895041317,-500.0,0.00017808,2]
[404168146,1769895041327,-151.0,0.00017808,2]
[404168147,1769895041336,-151.0,0.00017808,2]
[404168148,1769895041345,-151.0,0.00017808,2]
[404168149,1769895041359,-151.0,0.00017808,2]
[404168150,1769895041368,-151.0,0.00017808,2]
[404168151,1769895041377,-500.0,0.00017809,2]
[404168152,1769895041387,-500.0,0.00017809,2]
[404168153,1769895041396,-500.0,0.00017809,2]
[404168154,1769895041406,-200.0,0.00017809,2]
[404168155,1769895041417,-500.0,0.00017809,2]
[404168156,1769895041426,-200.0,0.00017809,2]
[404168157,1769895041436,-500.0,0.00017809,2]
[404168158,1769895041445,-500.0,0.00017809,2]
[404168159,1769895041454,-200.0,0.00017809,2]
[404168160,1769895041463,-500.0,0.00017809,2]
[404168161,1769895041472,-500.0,0.00017809,2]
[404168162,1769895041482,-500.0,0.00017809,2]
[404168163,1769895041492,-192.11125817,0.00017809,2]
[404168164,1769895041502,-500.0,0.00017809,2]
[404168165,1769895041512,-500.0,0.00017809,2]
[404168166,1769895041703,-150.0,0.00017809,2]
[404168167,1769895041723,-500.0,0.00017809,2]
[404168168,1769895041732,-174.79564298,0.00017809,2]
[404168169,1769895041743,-2461.15441005,0.00017817,2]
[404168170,1769895041754,-842.696,0.0001782,2]
[404168171,1769895041764,-159.578,0.0001782,2]
[404168172,1769895041773,-480.8176,0.0001782,2]
[404168173,1769895041783,-480.8176,0.0001782,2]
[404168174,1769895041792,-480.81761,0.0001782,2]
[404168175,1769895041802,-480.81761,0.0001782,2]
[404168176,1769895041812,-500.0,0.00017829,2]
[404168177,1769895041821,-504.91559011,0.00017829,2]
[404168178,1769895041831,-500.0,0.00017829,2]
[404168179,1769895041841,-300.0,0.00017829,2]
[404168180,1769895041850,-300.0,0.00017829,2]
[404168181,1769895041860,-666.0,0.00017829,2]
[404168182,1769895041869,-151.0,0.0001783,2]
[404168183,1769895041879,-151.0,0.0001783,2]
[404168184,1769895041891,-151.0,0.0001783,2]
[404168185,1769895041900,-259.875327,0.0001783,2]
[404168186,1769895041910,-252.321056,0.0001783,2]
[404168187,1769895041920,-151.0,0.0001783,2]
[404168188,1769895041929,-151.0,0.0001783,2]
[404168189,1769895041940,-151.0,0.0001783,2]
[404168190,1769895041949,-151.0,0.0001783,2]
[404168191,1769895041960,-297.220806,0.0001783,2]
[404168192,1769895041969,-299.267784,0.0001783,2]
[404168193,1769895041979,-299.267784,0.0001783,2]
[404168194,1769895041988,-299.267784,0.0001783,2]
[404168195,1769895042000,-299.267784,0.0001783,2]
[404168196,1769895042010,-151.0,0.0001783,2]
[404168197,1769895042020,-151.0,0.0001783,2]
[404168198,1769895042030,-151.0,0.0001783,2]
[404168199,1769895042042,-151.0,0.0001783,2]
[404168200,1769895042052,-1414.490227,0.0001783,2]
[404168201,1769895042063,-1414.490227,0.0001783,2]
[404168202,1769895042075,-157.385787,0.0001783,2]
[404168203,1769895042085,-204.006437,0.0001783,2]
[404168204,1769895042096,-1414.490227,0.0001783,2]
[404168205,1769895042106,-157.385787,0.0001783,2]
[404168206,1769895042115,-204.006437,0.0001783,2]
[404168207,1769895042126,-1414.490227,0.0001783,2]
[404168208,1769895042136,-157.385787,0.0001783,2]
[404168209,1769895042148,-204.006437,0.0001783,2]
[404168210,1769895042158,-157.385787,0.0001783,2]
[404168211,1769895042168,-204.006437,0.0001783,2]
[404168212,1769895042177,-2461.15441005,0.00017845,2]
[404168213,1769895042187,-5888.0,0.00017849,2]
[404168214,1769895042196,-1001.62032084,0.0001786,2]
[404168215,1769895042206,-500.0,0.00017861,2]
[404168216,1769895042215,-500.0,0.00017861,2]
[404168217,1769895042226,-500.0,0.00017861,2]
[404168218,1769895042236,-500.0,0.00017861,2]
[404168219,1769895042245,-500.0,0.00017861,2]
[404168220,1769895042255,-500.0,0.00017861,2]
[404168221,1769895042266,-500.0,0.00017861,2]
[404168222,1769895042281,-533.06503219,0.00017861,2]
[404168223,1769895042295,-517.33129808,0.00017861,2]
[404168224,1769895042305,-500.0,0.00017861,2]
[404168225,1769895042317,-500.0,0.00017861,2]
[404168226,1769895042327,-500.0,0.00017861,2]
[404168227,1769895042337,-500.0,0.00017861,2]
[404168228,1769895042347,-500.0,0.00017861,2]
[404168229,1769895042356,-500.0,0.00017861,2]
[404168230,1769895042366,-666.0,0.00017861,2]
[404168231,1769895042376,-300.0,0.00017861,2]
[404168232,1769895042386,-666.0,0.00017861,2]
[404168233,1769895042395,-666404.3433872,0.00017862,2]
[404168234,1769895042405,-2370.5715946,0.00017862,2]
[404168235,1769895042415,-881.6608784,0.00017862,2]
[404168236,1769895042425,-151.0,0.00017862,2]
[404168237,1769895042434,-151.0,0.00017862,2]
[404168238,1769895042444,-243.39013,0.00017862,2]
[404168239,1769895042454,-151.0,0.00017862,2]
[404168240,1769895042464,-151.0,0.00017862,2]
[404168241,1769895042473,-151.0,0.00017862,2]
[404168242,1769895042483,-151.0,0.00017862,2]
[404168243,1769895042492,-3376.7245529,0.00017862,2]
[404168244,1769895042503,-299.267784,0.00017862,2]
[404168245,1769895042512,-299.267784,0.00017862,2]
[404168246,1769895042522,-299.267784,0.00017862,2]
[404168247,1769895042532,-299.267784,0.00017862,2]
[404168248,1769895042542,-151.0,0.00017862,2]
[404168249,1769895042552,-151.0,0.00017862,2]
[404168250,1769895042563,-166.358856,0.00017862,2]
[404168251,1769895042574,-296.978136,0.00017862,2]
[404168252,1769895042584,-1414.490227,0.00017862,2]
[404168253,1769895042594,-1414.490227,0.00017862,2]
[404168254,1769895042604,-157.385787,0.00017862,2]
[404168255,1769895042615,-204.006437,0.00017862,2]
[404168256,1769895042624,-1414.490227,0.00017862,2]
[404168257,1769895042636,-157.385787,0.00017862,2]
[404168258,1769895042647,-204.006437,0.00017862,2]
[404168259,1769895042662,-157.385787,0.00017862,2]
[404168260,1769895042672,-1414.490224,0.00017862,2]
[404168261,1769895042684,-204.006437,0.00017862,2]
[404168262,1769895042693,-157.385791,0.00017862,2]
[404168263,1769895042703,-204.006433,0.00017862,2]
[404168264,1769895042714,-151.0,0.00017862,2]
[404168265,1769895042724,-151.0,0.00017862,2]
[404168266,1769895042734,-500.0,0.00017863,2]
[404168267,1769895042743,-500.0,0.00017863,2]
[404168268,1769895042753,-632.75731559,0.00017863,2]
[404168269,1769895042763,-500.0,0.00017863,2]
[404168270,1769895042772,-500.0,0.00017863,2]
[404168271,1769895042783,-500.0,0.00017863,2]
[404168272,1769895042793,-500.0,0.00017863,2]
[404168273,1769895042803,-451.33043874,0.00017863,2]
[404168274,1769895042812,-500.0,0.00017863,2]
[404168275,1769895042822,-500.0,0.00017863,2]
[404168276,1769895042832,-500.0,0.00017863,2]
[404168277,1769895042842,-253.2521373,0.00017863,2]
[404168278,1769895042852,-500.0,0.00017863,2]
[404168279,1769895042861,-500.0,0.00017863,2]
[404168280,1769895042871,-9778.0,0.00017866,2]
[404168281,1769895042881,-2461.15441005,0.00017872,2]
[404168282,1769895042892,-300.0,0.00017899,2]
[404168283,1769895042905,-500.0,0.00017899,2]
[404168284,1769895042917,-719.47771155,0.00017899,2]
[404168285,1769895042926,-477.27133364,0.000179,2]
[404168286,1769895042935,-10000.0,0.000179,2]
[404168287,1769895042945,-151.0,0.000179,2]
[404168288,1769895042954,-151.0,0.000179,2]
[404168289,1769895042965,-8478.47334261,0.000179,2]
[404168290,1769895042976,-1500.0,0.000179,2]
[404168291,1769895042986,-27893.92682518,0.000179,2]
[404168292,1769895042997,-2461.15441005,0.000179,2]
[404168293,1769895043007,-5833.44229833,0.000179,2]
[404168294,1769895043017,-500.0,0.00017918,2]
[404168295,1769895043028,-151.0,0.00017918,2]
[404168296,1769895043039,-500.0,0.00017918,2]
[404168297,1769895043049,-500.0,0.00017918,2]
[404168298,1769895043060,-500.0,0.00017918,2]
[404168299,1769895043070,-500.0,0.00017918,2]
[404168300,1769895043081,-500.0,0.00017918,2]
[404168301,1769895043091,-500.0,0.00017918,2]
[404168302,1769895043100,-500.0,0.00017918,2]
[404168303,1769895043111,-309.30429848,0.00017918,2]
[404168304,1769895043120,-500.0,0.00017918,2]
[404168305,1769895043129,-500.0,0.00017918,2]
[404168306,1769895043141,-1230.0,0.0001793,2]
[404168307,1769895043151,-1230.0,0.00017937,2]
[404168308,1769895043163,-301.47805296,0.00017948,2]
[404168309,1769895043172,-300.0,0.00017972,2]
[404168310,1769895043182,-500.0,0.00017972,2]
[404168311,1769895043191,-636.76112615,0.00017972,2]
[404168312,1769895043201,-500.0,0.00017972,2]
[404168313,1769895043212,-29561.0,0.00017973,2]
[404168314,1769895043224,-505.47748232,0.00017973,2]
[404168315,1769895043234,-446.65473485,0.00017973,2]
[404168316,1769895043244,-500.0,0.00017973,2]
[404168317,1769895043254,-500.0,0.00017973,2]
[404168318,1769895043264,-500.0,0.00017973,2]
[404168319,1769895043273,-500.0,0.00017973,2]
[404168320,1769895043283,-267.89050801,0.00017973,2]
[404168321,1769895043294,-500.0,0.00017973,2]
[404168322,1769895043303,-500.0,0.00017973,2]
[404168323,1769895043313,-500.0,0.00017973,2]
[404168324,1769895043322,-500.0,0.00017973,2]
[404168325,1769895043333,-525.04982288,0.00017973,2]
[404168326,1769895043342,-500.0,0.00017973,2]
[404168327,1769895043352,-500.0,0.00017973,2]
[404168328,1769895043361,-269.31182315,0.00017973,2]
[404168329,1769895043371,-500.0,0.00017973,2]
[404168330,1769895043380,-500.0,0.00017973,2]
[404168331,1769895043392,-506.0,0.00017973,2]
[404168332,1769895043402,-352.78636145,0.00017973,2]
[404168333,1769895043413,-500.0,0.00017973,2]
[404168334,1769895043423,-500.0,0.00017973,2]
[404168335,1769895043433,-500.0,0.00017973,2]
[404168336,1769895043443,-500.0,0.00017973,2]
[404168337,1769895043452,-151.0,0.00017973,2]
[404168338,1769895043461,-151.0,0.00017973,2]
[404168339,1769895043470,-151.0,0.00017973,2]
[404168340,1769895043480,-500.0,0.00017973,2]
[404168341,1769895043489,-150.0,0.00017973,2]
[404168342,1769895043499,-280.22326354,0.0001799,2]
[404168345,1769895043508,-85830.95618613,0.0001799,2]
[404168347,1769895043518,-151.0,0.0001799,2]
[404168349,1769895043527,-300.0,0.00017997,2]
[404168351,1769895043537,-500.0,0.00017997,2]
[404168352,1769895043546,-500.0,0.00017997,2]
[404168353,1769895043555,-500.0,0.00017997,2]
[404168354,1769895043566,-300.0,0.00017997,2]
[404168355,1769895043577,-420.22188804,0.00017997,2]
[404168356,1769895043586,-199435.9781042,0.00017998,2]
[404168358,1769895043595,-2993.4296171,0.00017998,2]
[404168359,1769895043604,-14533.6082422,0.00017998,2]
[404168360,1769895043615,-151.0,0.00017998,2]
[404168361,1769895043624,-151.0,0.00017998,2]
[404168362,1769895043633,-151.0,0.00017998,2]
[404168365,1769895043643,-150.0,0.00017999,2]
[404168368,1769895043653,-150.0,0.00017999,2]
[404168370,1769895043662,-150.0,0.00017999,2]
[404168372,1769895043672,-150.0,0.00017999,2]
[404168373,1769895043682,-273.3869684,0.00017999,2]
[404168374,1769895043691,-300.0,0.00017999,2]
[404168375,1769895043701,-500.0,0.00017999,2]
[404168376,1769895043711,-500.0,0.00017999,2]
[404168377,1769895043720,-500.0,0.00017999,2]
[404168378,1769895043729,-500.0,0.00017999,2]
[404168379,1769895043739,-500.0,0.00017999,2]
[404168380,1769895043748,-515.95481889,0.00017999,2]
[404168381,1769895043758,-500.0,0.00017999,2]
[404168382,1769895043767,-500.0,0.00017999,2]
[404168383,1769895043776,-500.0,0.00017999,2]
[404168384,1769895043785,-500.0,0.00017999,2]
[404168385,1769895043795,-500.0,0.00017999,2]
[404168386,1769895043804,-500.0,0.00017999,2]
[404168387,1769895043814,-468.46076775,0.00017999,2]